fUST/lending_fUST_20250302
["ID","MTS","AMOUNT","RATE_DAILY","PERIOD"]
[354982460,1740856244868,-886.54,0.00025346,2]
[354982462,1740856244878,-500.0,0.00025346,2]
[354982464,1740856244887,-500.0,0.00025346,2]
[354982466,1740856244896,-521.441847,0.00025346,2]
[354982468,1740856244905,-500.0,0.00025346,2]
[354982470,1740856244914,-500.0,0.00025346,2]
[354982472,1740856244924,-500.0,0.00025346,2]
[354982474,1740856244933,-380.4116414,0.00025346,2]
[354982476,1740856244942,-500.0,0.00025346,2]
[354982478,1740856244951,-500.0,0.00025346,2]
[354982480,1740856244961,-500.0,0.00025346,2]
[354982482,1740856244971,-1176.6,0.00025346,2]
[354982484,1740856244980,-500.0,0.00025346,2]
[354982486,1740856244989,-500.0,0.00025346,2]
[354982488,1740856244998,-500.0,0.00025346,2]
[354982490,1740856245008,-500.0,0.00025346,2]
[354982491,1740856245017,-753.23,0.00025346,2]
[354982493,1740856245026,-500.0,0.00025346,2]
[354982495,1740856245035,-500.0,0.00025346,2]
[354982497,1740856245044,-500.0,0.00025346,2]
[354982499,1740856245053,-500.0,0.00025346,2]
[354982501,1740856245062,-500.0,0.00025346,2]
[354982503,1740856245072,-500.0,0.00025346,2]
[354982505,1740856245081,-500.0,0.00025346,2]
[354982507,1740856245091,-500.0,0.00025346,2]
[354982509,1740856245100,-500.0,0.00025346,2]
[354982511,1740856245109,-500.0,0.00025346,2]
[354982512,1740856245119,-500.0,0.00025346,2]
[354982514,1740856245128,-500.0,0.00025346,2]
[354982516,1740856245138,-507.8224891,0.00025346,2]
[354982518,1740856245146,-500.0,0.00025346,2]
[354982520,1740856245155,-500.0,0.00025346,2]
[354982522,1740856245165,-500.0,0.00025346,2]
[354982524,1740856245174,-500.0,0.00025346,2]
[354982526,1740856245183,-500.0,0.00025346,2]
[354982528,1740856245192,-782.36,0.00025346,2]
[354982530,1740856245203,-1076.33,0.00025346,2]
[354982531,1740856245213,-500.0,0.00025346,2]
[354982533,1740856245222,-500.0,0.00025346,2]
[354982535,1740856245231,-500.0,0.00025346,2]
[354982537,1740856245240,-500.0,0.00025346,2]
[354982539,1740856245249,-500.0,0.00025346,2]
[354982541,1740856245259,-500.0,0.00025346,2]
[354982543,1740856245268,-500.0,0.00025346,2]
[354982545,1740856245277,-1499.68,0.00025346,2]
[354982547,1740856245287,-511.03981427,0.00025346,2]
[354982549,1740856245296,-500.0,0.00025346,2]
[354982550,1740856245305,-238.5656605,0.00025346,2]
[354982552,1740856245315,-500.0,0.00025346,2]
[354982554,1740856245324,-500.0,0.00025346,2]
[354982556,1740856245333,-500.0,0.00025346,2]
[354982558,1740856245342,-500.0,0.00025346,2]
[354982560,1740856245353,-500.0,0.00025346,2]
[354982562,1740856245362,-500.0,0.00025346,2]
[354982564,1740856245371,-1248.36,0.00025346,2]
[354982566,1740856245381,-500.0,0.00025346,2]
[354982567,1740856245390,-500.0,0.00025346,2]
[354982569,1740856245399,-500.0,0.00025346,2]
[354982571,1740856245409,-500.0,0.00025346,2]
[354982573,1740856245418,-500.0,0.00025346,2]
[354982575,1740856245430,-500.0,0.00025346,2]
[354982577,1740856245440,-500.0,0.00025346,2]
[354982579,1740856245449,-500.0,0.00025346,2]
[354982580,1740856245459,-500.0,0.00025346,2]
[354982582,1740856245470,-1216.19,0.00025346,2]
[354982584,1740856245479,-500.0,0.00025346,2]
[354982586,1740856245488,-439.010419,0.00025346,2]
[354982588,1740856245498,-509.12,0.00025346,2]
[354982590,1740856245509,-503.66122976,0.00025346,2]
[354982592,1740856245519,-150.0,0.00025346,2]
[354982594,1740856245529,-500.0,0.00025346,2]
[354982596,1740856245538,-500.0,0.00025346,2]
[354982598,1740856245547,-500.0,0.00025346,2]
[354982599,1740856245557,-574.63,0.00025346,2]
[354982601,1740856245566,-1134.51,0.00025346,2]
[354982603,1740856245576,-1134.51,0.00025346,2]
[354982605,1740856245586,-1134.51,0.00025346,2]
[354982607,1740856245595,-1134.51,0.00025346,2]
[354982609,1740856245605,-500.0,0.00025346,2]
[354982611,1740856245614,-1134.51,0.00025346,2]
[354982613,1740856245624,-1134.51,0.00025346,2]
[354982616,1740856245633,-1134.51,0.00025346,2]
[354982619,1740856245643,-1134.51,0.00025346,2]
[354982621,1740856245652,-500.0,0.00025346,2]
[354982622,1740856245661,-1134.51,0.00025346,2]
[354982624,1740856245670,-500.0,0.00025346,2]
[354982626,1740856245679,-586.96,0.00025346,2]
[354982628,1740856245688,-500.0,0.00025346,2]
[354982630,1740856245697,-500.0,0.00025346,2]
[354982632,1740856245706,-500.0,0.00025346,2]
[354982634,1740856245715,-1000.0,0.00025346,2]
[354982635,1740856245725,-500.0,0.00025346,2]
[354982637,1740856245734,-563.46,0.00025346,2]
[354982639,1740856245743,-500.0,0.00025346,2]
[354982641,1740856245753,-500.0,0.00025346,2]
[354982643,1740856245763,-500.0,0.00025346,2]
[354982645,1740856245772,-500.0,0.00025346,2]
[354982647,1740856245781,-500.0,0.00025346,2]
[354982649,1740856245790,-500.0,0.00025346,2]
[354982651,1740856245799,-500.0,0.00025346,2]
[354982653,1740856245809,-522.4143186,0.00025346,2]
[354982655,1740856245818,-500.0,0.00025346,2]
[354982656,1740856245827,-500.0,0.00025346,2]
[354982658,1740856245836,-500.0,0.00025346,2]
[354982660,1740856245845,-428.06541412,0.00025346,2]
[354982662,1740856245854,-224.66557078,0.00025346,2]
[354982664,1740856245864,-500.0,0.00025346,2]
[354982666,1740856245873,-513.64365709,0.00025346,2]
[354982668,1740856245883,-500.0,0.00025346,2]
[354982670,1740856245892,-500.0,0.00025346,2]
[354982672,1740856245901,-500.0,0.00025346,2]
[354982673,1740856245910,-889.45,0.00025346,2]
[354982675,1740856245919,-153.76715891,0.00025346,2]
[354982677,1740856245928,-500.0,0.00025346,2]
[354982679,1740856245937,-347.01930973,0.00025346,2]
[354982681,1740856245947,-500.0,0.00025346,2]
[354982683,1740856245957,-500.0,0.00025346,2]
[354982685,1740856245967,-500.0,0.00025346,2]
[354982687,1740856245977,-500.0,0.00025346,2]
[354982689,1740856245987,-500.0,0.00025346,2]
[354982691,1740856245996,-688.17,0.00025346,2]
[354982693,1740856246005,-500.0,0.00025346,2]
[354982694,1740856246015,-500.0,0.00025346,2]
[354982696,1740856246024,-544.63,0.00025346,2]
[354982698,1740856246034,-651.62,0.00025346,2]
[354982700,1740856246043,-500.0,0.00025346,2]
[354982702,1740856246052,-500.0,0.00025346,2]
[354982704,1740856246062,-583.04,0.00025346,2]
[354982706,1740856246072,-500.0,0.00025346,2]
[354982708,1740856246081,-505.05,0.00025346,2]
[354982709,1740856246091,-500.0,0.00025346,2]
[354982711,1740856246099,-500.0,0.00025346,2]
[354982713,1740856246109,-500.0,0.00025346,2]
[354982715,1740856246118,-537.3,0.00025346,2]
[354982717,1740856246127,-500.0,0.00025346,2]
[354982719,1740856246137,-959.57,0.00025346,2]
[354982721,1740856246146,-500.0,0.00025346,2]
[354982722,1740856246156,-500.0,0.00025346,2]
[354982724,1740856246165,-500.0,0.00025346,2]
[354982726,1740856246174,-500.0,0.00025346,2]
[354982727,1740856246184,-500.0,0.00025346,2]
[354982729,1740856246193,-500.0,0.00025346,2]
[354982731,1740856246203,-500.0,0.00025346,2]
[354982732,1740856246212,-500.0,0.00025346,2]
[354982734,1740856246222,-517.46553476,0.00025346,2]
[354982736,1740856246231,-500.0,0.00025346,2]
[354982737,1740856246241,-500.0,0.00025346,2]
[354982739,1740856246251,-500.0,0.00025346,2]
[354982741,1740856246261,-500.0,0.00025346,2]
[354982742,1740856246270,-559.71,0.00025346,2]
[354982744,1740856246279,-500.0,0.00025346,2]
[354982746,1740856246289,-500.0,0.00025346,2]
[354982747,1740856246300,-500.0,0.00025346,2]
[354982749,1740856246309,-500.0,0.00025346,2]
[354982751,1740856246319,-1023.32,0.00025346,2]
[354982752,1740856246329,-500.0,0.00025346,2]
[354982754,1740856246339,-500.0,0.00025346,2]
[354982756,1740856246349,-950.84,0.00025346,2]
[354982758,1740856246359,-500.0,0.00025346,2]
[354982759,1740856246369,-500.0,0.00025346,2]
[354982761,1740856246379,-500.0,0.00025346,2]
[354982763,1740856246389,-1185.84,0.00025346,2]
[354982765,1740856246400,-484.83221773,0.00025346,2]
[354982766,1740856246411,-500.0,0.00025346,2]
[354982768,1740856246422,-500.0,0.00025346,2]
[354982770,1740856246436,-500.0,0.00025346,2]
[354982771,1740856246446,-500.0,0.00025346,2]
[354982773,1740856246456,-500.0,0.00025346,2]
[354982775,1740856246467,-596.2,0.00025346,2]
[354982777,1740856246477,-573.77727748,0.00025346,2]
[354982778,1740856246487,-500.0,0.00025347,2]
[354982780,1740856246498,-500.0,0.00025347,2]
[354982782,1740856246508,-500.0,0.00025347,2]
[354982783,1740856246518,-500.0,0.00025347,2]
[354982785,1740856246527,-500.0,0.00025347,2]
[354982787,1740856246537,-500.0,0.00025347,2]
[354982789,1740856246547,-500.0,0.00025347,2]
[354982790,1740856246557,-500.0,0.00025347,2]
[354982792,1740856246567,-500.0,0.00025347,2]
[354982794,1740856246577,-500.0,0.00025347,2]
[354982795,1740856246587,-500.0,0.00025347,2]
[354982797,1740856246596,-500.0,0.00025347,2]
[354982799,1740856246607,-500.0,0.00025347,2]
[354982801,1740856246616,-500.0,0.00025347,2]
[354982803,1740856246626,-500.0,0.00025347,2]
[354982804,1740856246636,-500.0,0.00025347,14]
[354982806,1740856246647,-500.0,0.00025347,2]
[354982808,1740856246657,-500.0,0.00025347,2]
[354982810,1740856246667,-500.0,0.00025347,2]
[354982811,1740856246676,-501.46367803,0.00025347,2]
[354982813,1740856246687,-500.0,0.00025347,2]
[354982815,1740856246696,-500.0,0.00025347,2]
[354982817,1740856246706,-500.0,0.00025347,2]
[354982819,1740856246715,-500.0,0.00025347,2]
[354982820,1740856246725,-503.83221514,0.00025347,2]
[354982822,1740856246735,-500.0,0.00025347,2]
[354982824,1740856246744,-500.0,0.00025347,2]
[354982826,1740856246754,-500.0,0.00025347,2]
[354982828,1740856246764,-500.0,0.00025347,2]
[354982829,1740856246774,-500.0,0.00025347,2]
[354982831,1740856246783,-500.0,0.00025347,2]
[354982833,1740856246793,-500.0,0.00025347,2]
[354982835,1740856246803,-1134.51,0.00025347,2]
[354982837,1740856246813,-1134.51,0.00025347,2]
[354982839,1740856246823,-1134.51,0.00025347,2]
[354982840,1740856246833,-1134.51,0.00025347,2]
[354982842,1740856246842,-1134.51,0.00025347,2]
[354982844,1740856246852,-1134.51,0.00025347,2]
[354982846,1740856246862,-1134.51,0.00025347,2]
[354982848,1740856246872,-1134.51,0.00025347,2]
[354982850,1740856246882,-1134.51,0.00025347,2]
[354982851,1740856246893,-1134.51,0.00025347,2]
[354982853,1740856246903,-1134.51,0.00025347,2]
[354982855,1740856246913,-1134.51,0.00025347,2]
[354982857,1740856246923,-1134.51,0.00025347,2]
[354982859,1740856246932,-1134.52,0.00025347,2]
[354982861,1740856246942,-608.73,0.00025347,2]
[354982862,1740856246952,-500.0,0.00025347,2]
[354982864,1740856246962,-566.97,0.00025347,2]
[354982866,1740856246971,-500.0,0.00025347,2]
[354982868,1740856246981,-500.0,0.00025347,2]
[354982870,1740856246991,-500.0,0.00025347,2]
[354982871,1740856247001,-500.0,0.00025347,2]
[354982873,1740856247011,-500.0,0.00025347,2]
[354982875,1740856247021,-500.0,0.00025347,2]
[354982877,1740856247030,-500.0,0.00025347,2]
[354982879,1740856247040,-500.0,0.00025347,2]
[354982880,1740856247050,-500.0,0.00025347,2]
[354982882,1740856247060,-500.0,0.00025347,2]
[354982884,1740856247069,-1291.98,0.00025347,2]
[354982885,1740856247079,-1544.35,0.00025347,2]
[354982887,1740856247089,-584.98,0.00025347,2]
[354982889,1740856247098,-669.5,0.00025347,2]
[354982891,1740856247108,-546.35,0.00025347,2]
[354982893,1740856247118,-1349.07,0.00025347,2]
[354982894,1740856247128,-510.78311647,0.00025347,2]
[354982896,1740856247138,-500.0,0.00025347,2]
[354982898,1740856247148,-500.0,0.00025347,2]
[354982900,1740856247158,-500.0,0.00025347,2]
[354982902,1740856247169,-2563.8,0.00025347,2]
[354982903,1740856247181,-1435.73,0.00025347,2]
[354982905,1740856247191,-500.0,0.00025347,2]
[354982907,1740856247202,-552.13943683,0.00025397,2]
[354982909,1740856247212,-151.0,0.000254,17]
[354982911,1740856247222,-151.0,0.000254,15]
[354982912,1740856247232,-2189.08408544,0.000254,2]
[354982914,1740856247242,-1776.03,0.00025446,2]
[354982916,1740856247252,-4379.09,0.00025446,2]
[354982918,1740856247262,-925.77,0.00025446,2]
[354982920,1740856247272,-616.35,0.00025446,2]
[354982921,1740856247282,-1338.29,0.00025446,2]
[354982923,1740856247291,-500.0,0.00025446,2]
[354982925,1740856247301,-500.0,0.00025446,2]
[354982927,1740856247311,-15430.04,0.00025446,2]
[354982929,1740856247322,-9682.22,0.00025446,2]
[354982930,1740856247331,-7345.59,0.00025446,2]
[354982932,1740856247341,-500.0,0.00025446,2]
[354982934,1740856247351,-3289.57,0.00025446,2]
[354982936,1740856247361,-4569.17,0.00025446,2]
[354982938,1740856247371,-1040.62,0.00025446,5]
[354982939,1740856247381,-1863.2,0.00025446,2]
[354982941,1740856247391,-1495.27,0.00025446,2]
[354982943,1740856247401,-6804.97,0.00025446,2]
[354982945,1740856247411,-500.0,0.00025446,2]
[354982946,1740856247422,-1389.43,0.00025446,2]
[354982948,1740856247434,-500.0,0.00025446,2]
[354982950,1740856247443,-5656.76,0.00025446,2]
[354982952,1740856247453,-964.63,0.00025446,2]
[354982954,1740856247463,-3103.69,0.00025446,2]
[354982955,1740856247474,-986.66,0.00025446,2]
[354982957,1740856247484,-10046.41,0.00025446,2]
[354982959,1740856247494,-503.34,0.00025446,2]
[354982961,1740856247506,-3429.04,0.00025446,2]
[354982962,1740856247516,-500.0,0.00025446,2]
[354982964,1740856247526,-1406.95,0.00025446,2]
[354982966,1740856247536,-500.0,0.00025446,2]
[354982968,1740856247546,-569.6,0.00025446,2]
[354982970,1740856247556,-424.85207307,0.00025446,2]
[354982971,1740856247566,-500.0,0.00025447,2]
[354982973,1740856247576,-500.0,0.00025447,2]
[354982975,1740856247586,-500.0,0.00025447,2]
[354982977,1740856247597,-500.0,0.00025447,2]
[354982979,1740856247607,-500.0,0.00025447,2]
[354982981,1740856247618,-500.0,0.00025447,2]
[354982982,1740856247628,-960.94,0.00025447,2]
[354982984,1740856247637,-500.0,0.00025447,2]
[354982986,1740856247648,-500.0,0.00025447,2]
[354982988,1740856247658,-588.7,0.00025447,2]
[354982990,1740856247668,-500.0,0.00025447,2]
[354982991,1740856247678,-800.56,0.00025447,2]
[354982993,1740856247688,-785.35,0.00025447,2]
[354982995,1740856247698,-500.0,0.00025447,2]
[354982997,1740856247708,-500.0,0.00025447,2]
[354982999,1740856247717,-500.0,0.00025447,2]
[354983000,1740856247727,-501.87,0.00025447,2]
[354983002,1740856247736,-500.0,0.00025447,2]
[354983004,1740856247747,-1483.81,0.00025447,2]
[354983006,1740856247756,-500.0,0.00025447,2]
[354983008,1740856247766,-500.0,0.00025447,2]
[354983009,1740856247776,-500.0,0.00025447,2]
[354983011,1740856247786,-1607.46,0.00025447,2]
[354983013,1740856247795,-500.0,0.00025447,2]
[354983015,1740856247805,-759.6,0.00025447,2]
[354983017,1740856247815,-500.0,0.00025447,2]
[354983019,1740856247824,-500.0,0.00025447,2]
[354983020,1740856247834,-500.0,0.00025447,2]
[354983022,1740856247844,-500.0,0.00025447,2]
[354983024,1740856247855,-500.0,0.00025447,2]
[354983026,1740856247864,-1773.71,0.00025447,2]
[354983028,1740856247874,-500.0,0.00025447,2]
[354983030,1740856247885,-500.0,0.00025447,2]
[354983031,1740856247895,-500.0,0.00025447,2]
[354983033,1740856247905,-500.0,0.00025447,2]
[354983035,1740856247915,-500.0,0.00025447,2]
[354983037,1740856247925,-688.89,0.00025447,2]
[354983039,1740856247935,-500.0,0.00025447,2]
[354983040,1740856247944,-1081.9,0.00025447,2]
[354983042,1740856247954,-500.0,0.00025447,2]
[354983044,1740856247963,-500.0,0.00025447,2]
[354983045,1740856247974,-500.0,0.00025447,2]
[354983047,1740856247983,-500.0,0.00025447,2]
[354983049,1740856247993,-594.32,0.00025447,2]
[354983051,1740856248003,-645.39,0.00025447,2]
[354983053,1740856248012,-500.0,0.00025447,2]
[354983054,1740856248022,-500.0,0.00025447,2]
[354983056,1740856248032,-500.0,0.00025447,2]
[354983058,1740856248043,-500.0,0.00025447,2]
[354983060,1740856248052,-500.0,0.00025447,2]
[354983062,1740856248062,-1181.76,0.00025447,2]
[354983063,1740856248072,-500.0,0.00025447,2]
[354983065,1740856248082,-564.86,0.00025447,2]
[354983067,1740856248093,-500.0,0.00025447,2]
[354983069,1740856248104,-500.0,0.00025447,2]
[354983071,1740856248114,-500.0,0.00025447,2]
[354983073,1740856248124,-500.0,0.00025447,2]
[354983075,1740856248134,-1072.11,0.00025447,2]
[354983076,1740856248146,-792.8,0.00025447,2]
[354983078,1740856248156,-500.0,0.00025447,2]
[354983080,1740856248166,-500.0,0.00025447,2]
[354983082,1740856248176,-500.0,0.00025447,2]
[354983084,1740856248186,-1890.72,0.00025447,2]
[354983086,1740856248196,-619.74,0.00025447,2]
[354983088,1740856248206,-500.0,0.00025447,2]
[354983089,1740856248216,-500.0,0.00025447,2]
[354983091,1740856248226,-1316.52,0.00025447,2]
[354983093,1740856248236,-500.0,0.00025447,2]
[354983095,1740856248246,-702.24,0.00025447,2]
[354983096,1740856248256,-500.0,0.00025447,2]
[354983098,1740856248266,-500.0,0.00025447,2]
[354983100,1740856248276,-500.0,0.00025447,2]
[354983102,1740856248286,-1276.83,0.00025447,2]
[354983104,1740856248296,-500.0,0.00025447,2]
[354983106,1740856248306,-925.95,0.00025447,2]
[354983108,1740856248316,-500.0,0.00025447,2]
[354983109,1740856248328,-500.0,0.00025447,2]
[354983111,1740856248338,-500.0,0.00025447,2]
[354983113,1740856248348,-500.0,0.00025447,2]
[354983115,1740856248359,-500.0,0.00025447,2]
[354983117,1740856248369,-375.71,0.00025447,2]
[354983118,1740856248378,-3493.59,0.00025447,2]
[354983120,1740856248388,-500.0,0.00025447,2]
[354983122,1740856248399,-2069.48,0.00025447,2]
[354983124,1740856248409,-942.22,0.00025447,2]
[354983126,1740856248419,-500.0,0.00025447,2]
[354983128,1740856248431,-2051.77,0.00025447,2]
[354983129,1740856248441,-500.0,0.00025447,2]
[354983131,1740856248451,-500.0,0.00025447,2]
[354983133,1740856248461,-500.0,0.00025447,2]
[354983135,1740856248472,-582.73,0.00025447,2]
[354983137,1740856248482,-500.0,0.00025447,2]
[354983138,1740856248492,-319.1493919,0.00025447,2]
[354983139,1740856248502,-502.5,0.00025447,2]
[354983140,1740856248514,-1986.76,0.00025447,2]
[354983141,1740856248525,-500.0,0.00025447,2]
[354983142,1740856248535,-500.0,0.00025447,2]
[354983143,1740856248547,-1432.7,0.00025447,2]
[354983144,1740856248557,-500.0,0.00025447,2]
[354983145,1740856248567,-500.0,0.00025447,2]
[354983146,1740856248577,-185482.09,0.00025447,2]
[354983147,1740856248588,-500.0,0.00025447,2]
[354983148,1740856248598,-623.35,0.00025447,2]
[354983149,1740856248610,-500.0,0.00025447,2]
[354983150,1740856248628,-878.29,0.00025447,2]
[354983157,1740856248918,-1836.81,0.00025447,2]
[354983161,1740856248950,-517.22,0.00025447,2]
[354983163,1740856248962,-2028.54,0.00025447,2]
[354983166,1740856248972,-755.28,0.00025447,2]
[354983168,1740856248984,-3380.82,0.00025447,2]
[354983170,1740856248994,-500.0,0.00025447,2]
[354983172,1740856249004,-1111.42,0.00025447,2]
[354983174,1740856249014,-1107.31,0.00025447,2]
[354983176,1740856249024,-8679.19,0.00025447,2]
[354983178,1740856249035,-502.06,0.00025447,2]
[354983180,1740856249045,-500.0,0.00025447,2]
[354983183,1740856249055,-1931.12,0.00025447,2]
[354983185,1740856249066,-500.0,0.00025447,2]
[354983187,1740856249076,-1521.15,0.00025447,2]
[354983189,1740856249086,-2396.33,0.00025447,2]
[354983191,1740856249097,-500.0,0.00025447,2]
[354983193,1740856249107,-761.77,0.00025447,2]
[354983195,1740856249119,-3644.05,0.00025447,2]
[354983197,1740856249129,-500.0,0.00025447,2]
[354983199,1740856249140,-500.0,0.00025447,2]
[354983202,1740856249156,-596.95,0.00025447,2]
[354983204,1740856249166,-500.0,0.00025447,2]
[354983206,1740856249176,-1115.74,0.00025447,2]
[354983208,1740856249188,-509.14,0.00025447,2]
[354983210,1740856249199,-1414.0,0.00025447,2]
[354983212,1740856249210,-500.0,0.00025447,2]
[354983214,1740856249223,-500.0,0.00025447,2]
[354983216,1740856249234,-1264.97,0.00025447,2]
[354983218,1740856249245,-500.0,0.00025447,2]
[354983220,1740856249257,-1038.26,0.00025447,2]
[354983222,1740856249268,-500.0,0.00025447,2]
[354983225,1740856249279,-500.0,0.00025447,2]
[354983227,1740856249291,-646.95,0.00025447,2]
[354983229,1740856249303,-34072.75,0.00025447,2]
[354983231,1740856249315,-167.5383512,0.00025447,2]
[354983233,1740856249325,-525.3,0.00025447,2]
[354983235,1740856249335,-568.2647763,0.00025447,2]
[354983237,1740856249346,-1539.21,0.00025447,2]
[354983239,1740856249357,-500.0,0.00025447,2]
[354983241,1740856249367,-740.17,0.00025447,2]
[354983244,1740856249378,-500.0,0.00025447,2]
[354983246,1740856249388,-2313.21,0.00025447,2]
[354983248,1740856249401,-500.0,0.00025447,2]
[354983250,1740856249411,-1003.17,0.00025447,2]
[354983252,1740856249422,-263.46648105,0.00025447,2]
[354983254,1740856249437,-500.0,0.00025447,2]
[354983256,1740856249450,-719.94,0.00025447,2]
[354983259,1740856249464,-500.0,0.00025447,2]
[354983261,1740856249474,-665.91,0.00025447,2]
[354983263,1740856249484,-500.0,0.00025447,2]
[354983265,1740856249494,-500.0,0.00025447,2]
[354983267,1740856249505,-1850.39,0.00025447,2]
[354983269,1740856249515,-500.0,0.00025447,2]
[354983271,1740856249526,-500.0,0.00025447,2]
[354983273,1740856249536,-500.0,0.00025447,2]
[354983275,1740856249546,-1357.68,0.00025447,2]
[354983277,1740856249556,-500.0,0.00025447,2]
[354983279,1740856249566,-500.0,0.00025447,2]
[354983281,1740856249577,-573.18,0.00025447,2]
[354983284,1740856249587,-500.0,0.00025447,2]
[354983286,1740856249597,-500.0,0.00025447,2]
[354983288,1740856249607,-500.0,0.00025447,2]
[354983290,1740856249617,-1183.53,0.00025447,2]
[354983292,1740856249627,-500.0,0.00025447,2]
[354983294,1740856249637,-500.0,0.00025447,2]
[354983296,1740856249648,-151.0,0.00025447,7]
[354983298,1740856249659,-500.0,0.00025447,2]
[354983300,1740856249669,-227.0,0.00025447,7]
[354983302,1740856249678,-500.0,0.00025447,2]
[354983304,1740856249688,-500.0,0.00025447,2]
[354983306,1740856249698,-500.0,0.00025447,2]
[354983308,1740856249708,-1181.9,0.00025447,2]
[354983310,1740856249718,-500.0,0.00025447,2]
[354983312,1740856249728,-5709.74,0.00025447,2]
[354983315,1740856249737,-807.84,0.00025447,2]
[354983317,1740856249747,-813.58,0.00025447,2]
[354983319,1740856249757,-933.62,0.00025447,2]
[354983321,1740856249766,-500.0,0.00025447,2]
[354983323,1740856249775,-500.0,0.00025447,2]
[354983325,1740856249786,-14955.51,0.00025447,2]
[354983327,1740856249795,-500.0,0.00025447,2]
[354983329,1740856249806,-796.04,0.00025447,2]
[354983331,1740856249816,-500.0,0.00025447,2]
[354983333,1740856249826,-500.0,0.00025447,2]
[354983335,1740856249836,-500.0,0.00025447,2]
[354983337,1740856249846,-500.0,0.00025447,2]
[354983339,1740856249856,-500.0,0.00025447,2]
[354983341,1740856249866,-961.27,0.00025447,2]
[354983343,1740856249876,-500.0,0.00025447,2]
[354983345,1740856249886,-1593.74,0.00025447,2]
[354983348,1740856249898,-500.0,0.00025447,2]
[354983350,1740856249908,-696.22,0.00025447,2]
[354983352,1740856249918,-500.0,0.00025447,2]
[354983354,1740856249929,-897.06,0.00025447,2]
[354983356,1740856249939,-500.0,0.00025447,2]
[354983358,1740856249949,-543.92248431,0.00025447,2]
[354983360,1740856249959,-1878.41,0.00025447,2]
[354983362,1740856249969,-500.0,0.00025473,2]
[354983364,1740856249979,-625.12137843,0.00025473,2]
[354983366,1740856249989,-162.65928204,0.00025473,2]
[354983369,1740856250000,-500.0,0.00025473,2]
[354983371,1740856250010,-500.0,0.00025473,2]
[354983373,1740856250020,-500.0,0.00025473,2]
[354983375,1740856250030,-500.0,0.00025473,2]
[354983377,1740856250044,-500.0,0.00025473,2]
[354983379,1740856250061,-500.0,0.00025473,2]
[354983381,1740856250073,-500.0,0.00025473,2]
[354983383,1740856250084,-500.0,0.00025473,2]
[354983385,1740856250095,-500.0,0.00025473,2]
[354983387,1740856250105,-601.26755221,0.00025473,2]
[354983389,1740856250115,-500.0,0.00025473,2]
[354983391,1740856250125,-500.0,0.00025473,2]
[354983393,1740856250136,-628.55083238,0.00025473,2]
[354983395,1740856250146,-276.86700648,0.00025473,2]
[354983397,1740856250156,-500.0,0.00025473,2]
[354983399,1740856250167,-500.0,0.00025473,2]
[354983401,1740856250176,-500.0,0.00025473,2]